fUSD/lending_fUSD_20240331
["ID","MTS","AMOUNT","RATE_DAILY","PERIOD"]
[321153304,1711914647792,-2477.15,0.00055068,120]
[321153305,1711914647803,-500.0,0.00055068,120]
[321153306,1711914647813,-500.0,0.00055068,120]
[321153307,1711914647824,-500.0,0.00055068,120]
[321153308,1711914647834,-422.64465854,0.00055068,120]
[321153309,1711914647974,-77.35534146,0.00055068,120]
[321153310,1711914647994,-299.57410969,0.00055068,120]
[321153311,1711914670625,42.7341239,0.00025,2]
[321153312,1711914670647,212.3132292,0.00025,2]
[321153313,1711914670668,212.3132292,0.00025,2]
[321153314,1711914670688,212.3132292,0.00025,2]
[321153315,1711914670708,212.3132292,0.00025,2]
[321153316,1711914670727,212.3132292,0.00025,2]
[321153317,1711914670747,212.3132292,0.00025,2]
[321153318,1711914670767,212.3132292,0.00025,2]
[321153319,1711914670787,212.3132292,0.00025,2]
[321153320,1711914670808,212.3132292,0.00025,2]
[321153321,1711914670835,1500.0,0.00025,2]
[321153322,1711914670859,810452.79484082,0.00025,2]
[321153324,1711914749500,1313.41229281,0.00015,2]
[321153326,1711914771274,2489.95981408,0.00025,2]
[321153329,1711914844090,1963.04823811,0.00025,2]
[321153330,1711914846355,2409.64437003,0.00025,2]
[321153331,1711914847098,2531.46518507,0.0001875,2]
[321153332,1711914848053,226.59143028,0.00024,2]
[321153333,1711914849601,6992.18323311,0.0002,2]
[321153335,1711914851837,241.04997306,0.00025,2]
[321153336,1711914852086,392.8186011,0.00025,2]
[321153337,1711914867427,215.62185404,0.00015,2]
[321153338,1711914876052,155.0,0.00027,2]
[321153340,1711914928290,1172.51526513,0.00015,2]
[321153341,1711914936706,406.87188484,0.0001455,2]
[321153343,1711914958686,367.19992902,0.0002619,2]
[321153344,1711915220302,2632.13484441,0.0002619,2]
[321153347,1711915460304,365.01999995,0.0002619,2]
[321153392,1711915831579,-155.0,0.00031342,3]
[321153394,1711915831589,-169.05,0.00031343,2]
[321153396,1711915831598,-183.7969,0.00032896,2]
[321153399,1711915831607,-482.36674132,0.00032896,2]
[321153401,1711915831618,-255.63325868,0.00032896,2]
[321153403,1711915831627,-317.29359487,0.00032896,2]
[321153406,1711915831642,-628.69278105,0.00032896,2]
[321153412,1711915831693,-4748.52248743,0.00032896,2]
[321153414,1711915831705,-88.47441221,0.00032896,2]
[321153417,1711915831714,-282.1782915,0.00032897,2]
[321153419,1711915831724,-350.0,0.00033,3]
[321153421,1711915831734,-238.24140793,0.00034219,2]
[321153423,1711915831743,-400.0,0.00035,3]
[321153425,1711915831753,-3184.034726,0.00036815,2]
[321153427,1711915831762,-450.0,0.00037,3]
[321153428,1711915831771,-250.0,0.00037,120]
[321153430,1711915831781,-342.21,0.00037432,2]
[321153432,1711915831790,-250.0,0.000375,120]
[321153434,1711915831802,-152.33,0.00037808,2]
[321153436,1711915831811,-171.66,0.00037808,2]
[321153437,1711915831821,-164.25254875,0.00037901,2]
[321153439,1711915831830,-250.0,0.00038,120]
[321153441,1711915831840,-440.12783223,0.00038001,7]
[321153443,1711915831850,-164.25254865,0.00038322,2]
[321153444,1711915831859,-250.0,0.000385,120]
[321153445,1711915831869,-164.25254865,0.00038743,2]
[321153446,1711915831878,-500.0,0.00039,3]
[321153447,1711915832094,-250.0,0.00039,120]
[321153448,1711915832103,-164.25254865,0.00039165,2]
[321153449,1711915832112,-359.03,0.00039178,2]
[321153450,1711915832122,-150.0,0.00039179,2]
[321153451,1711915832131,-166.76,0.00039226,2]
[321153453,1711915832140,-23890.0,0.00039287,2]
[321153454,1711915832149,-1000.0,0.00039308,2]
[321153455,1711915832158,-500.0,0.00039375,2]
[321153456,1711915832168,-1533.56,0.00039428,2]
[321153457,1711915832177,-250.0,0.000395,120]
[321153458,1711915832185,-164.25254865,0.00039586,2]
[321153459,1711915832195,-342.21,0.00039696,2]
[321153461,1711915832204,-179.53,0.00039721,15]
[321153462,1711915832213,-250.0,0.0004,120]
[321153463,1711915832222,-164.25254865,0.00040007,2]
[321153464,1711915832231,-164.25254865,0.00040428,2]
[321153465,1711915832241,-250.0,0.000405,120]
[321153466,1711915832250,-500.0,0.0004064,2]
[321153468,1711915832259,-164.25254865,0.00040849,2]
[321153469,1711915832268,-18683.42152967,0.0004099,2]
[321153471,1711915832445,-550.0,0.00041,3]
[321153472,1711915832455,-250.0,0.00041,120]
[321153473,1711915832464,-179.0,0.00041096,2]
[321153474,1711915832474,-164.25254865,0.00041271,2]
[321153475,1711915832483,-434.97,0.00041439,2]
[321153476,1711915832492,-250.0,0.000415,120]
[321153477,1711915832501,-164.25254865,0.00041692,2]
[321153478,1711915832510,-342.21,0.0004196,2]
[321153479,1711915832519,-250.0,0.00042,120]
[321153480,1711915832528,-154.13,0.000421,4]
[321153481,1711915832537,-154.13,0.000421,4]
[321153482,1711915832547,-159.18694307,0.00042108,10]
[321153483,1711915832556,-152.56590483,0.00042108,14]
[321153484,1711915832565,-164.25254865,0.00042113,2]
[321153485,1711915832574,-189.86261418,0.00042113,2]
[321153486,1711915832583,-235.11917358,0.00042113,16]
[321153487,1711915832592,-2406.74858921,0.00042113,2]
[321153488,1711915832602,-9832.93342614,0.00042113,2]
[321153489,1711915832612,-1533.56,0.00042168,2]
[321153490,1711915832622,-156.01520205,0.00042198,2]
[321153491,1711915832631,-154.1,0.00042198,2]
[321153492,1711915832640,-154.1,0.00042198,2]
[321153493,1711915832651,-154.1,0.00042198,2]
[321153494,1711915832661,-154.1,0.00042198,2]
[321153495,1711915832670,-154.1,0.00042202,2]
[321153496,1711915832679,-26870.81157937,0.00042208,2]
[321153497,1711915832692,-43203.65814666,0.00042208,2]
[321153498,1711915832702,-48057.62380684,0.00042208,2]
[321153499,1711915832713,-4878.27583287,0.00042208,3]
[321153500,1711915832723,-3208.84640533,0.00042208,2]
[321153501,1711915832732,-593.73179314,0.00042208,6]
[321153502,1711915832741,-193.49438796,0.00042208,2]
[321153503,1711915832750,-7006.08511232,0.00042208,2]
[321153504,1711915832760,-229.89888024,0.00042208,10]
[321153505,1711915832769,-2597.66669845,0.00042208,2]
[321153506,1711915832778,-6065.93291967,0.00042208,2]
[321153507,1711915832787,-24408.54954823,0.00042208,2]
[321153508,1711915832797,-360.91753165,0.00042208,3]
[321153509,1711915832810,-322.68471968,0.00042208,7]
[321153510,1711915832819,-156.09764906,0.00042208,2]
[321153511,1711915832828,-479.24787887,0.00042208,2]
[321153512,1711915832838,-11815.41926554,0.00042208,7]
[321153513,1711915832848,-235689.62358608,0.00042208,7]
[321153514,1711915832860,-2972.7695936,0.00042208,7]
[321153515,1711915832871,-412.40635636,0.00042208,7]
[321153516,1711915832883,-2381.19153743,0.00042208,7]
[321153517,1711915833234,-6030.13507794,0.00042208,7]
[321153546,1711915837565,-3002.74275554,0.00042208,7]
[321153548,1711915837576,-8010.62676324,0.00042208,7]
[321153551,1711915837589,-5448.99075263,0.00042208,7]
[321153553,1711915837601,-1977.25248141,0.00042208,7]
[321153580,1711915837895,-14132.58528744,0.00042208,7]
[321153583,1711915837906,-808.75030777,0.00042208,7]
[321153585,1711915837919,-741.27723955,0.00042208,7]
[321153587,1711915837930,-420.8888349,0.00042208,7]
[321153589,1711915837941,-298.52743707,0.00042208,7]
[321153591,1711915837952,-362.69102512,0.00042208,7]
[321153847,1711915839893,-284.09147575,0.00042208,7]
[321154179,1711915842812,-310.92142986,0.00042108,2]
[321154181,1711915842821,-155.0,0.00042207,3]
[321154183,1711915842830,-5451.84851197,0.00042208,7]
[321154186,1711915842848,-570.84457385,0.00042208,7]
[321154188,1711915842858,-446.24749998,0.00042208,7]
[321154190,1711915842869,-11057.0,0.00042208,7]
[321154197,1711915842923,-23116.49453771,0.00042208,7]
[321154201,1711915842953,-1207.92655099,0.00042208,7]
[321154208,1711915843011,-9518.44738169,0.00042208,7]
[321154210,1711915843023,-2871.41173563,0.00042208,7]
[321154212,1711915843034,-2197.36914319,0.00042208,7]
[321154293,1711915845804,-540.95033334,0.00042108,2]
[321154294,1711915845815,-6593.37298824,0.00042208,7]
[321154298,1711915876968,1500.00000001,0.0002619,10]
[321154302,1711916032561,-1997.18817901,0.00032999,4]
[321154303,1711916032584,-350.0,0.00033,3]
[321154304,1711916032611,-400.0,0.00035,3]
[321154305,1711916032635,-450.0,0.00037,3]
[321154306,1711916032659,-162.0,0.00037808,2]
[321154307,1711916032682,-466.09569932,0.00037986,4]
[321154308,1711916032705,-3509.18644738,0.00038999,2]
[321154309,1711916032728,-500.0,0.00039,3]
[321154310,1711916032753,-550.0,0.00041,3]
[321154311,1711916032775,-175.51,0.00041096,2]
[321154312,1711916032798,-843.54,0.00041346,2]
[321154313,1711916032822,-181.14,0.00041471,15]
[321154314,1711916032846,-189.86261418,0.00042108,2]
[321154315,1711916032870,-2166.07373028,0.00042108,2]
[321154316,1711916032893,-243.79015466,0.00042202,3]
[321154317,1711916033894,-978.53260255,0.00042206,4]
[321154318,1711916033920,-2345.35254533,0.00042206,4]
[321154319,1711916033948,-510.15081628,0.00042206,4]
[321154320,1711916033973,-10381.57721101,0.00042206,4]
[321154321,1711916160353,-250.0,0.000425,120]
[321154322,1711916160377,-165.1868964,0.00043,120]
[321154323,1711916160401,-151.0,0.00048,120]
[321154324,1711916160424,-50000.0,0.00049,120]
[321154325,1711916160447,-160.55364453,0.00049598,30]
[321154326,1711916160471,-181.14,0.0004969,120]
[321154327,1711916160494,-151.0,0.00049836,120]
[321154328,1711916160517,-151.0,0.0005,120]
[321154329,1711916160541,-359.03,0.00050411,120]
[321154330,1711916160563,-151.0,0.00051671,120]
[321154331,1711916160586,-154.1,0.00051786,120]
[321154332,1711916160609,-154.1,0.00051786,120]
[321154333,1711916160632,-154.1,0.00051786,120]
[321154334,1711916160655,-154.1,0.00051786,120]
[321154335,1711916160679,-154.1,0.00051786,120]
[321154355,1711917031781,-1177.09084516,0.00032899,2]
[321154356,1711917031793,-959.21602479,0.00032899,2]
[321154357,1711917031839,-2079.35349562,0.00032899,2]
[321154358,1711917031897,-10825.74003443,0.00032899,2]
[321154359,1711917031906,-151.81814755,0.00037608,2]
[321154360,1711917031915,-178.41151227,0.00037708,2]
[321154361,1711917031924,-162.01,0.00037808,2]
[321154362,1711917031933,-160.85,0.00037808,2]
[321154363,1711917031943,-195.2942974,0.00037958,4]
[321154364,1711917031954,-341.06,0.00039273,2]
[321154365,1711917031964,-439.91,0.00041058,2]
[321154366,1711917031973,-561.68,0.00041058,2]
[321154367,1711917031982,-250.0,0.00041063,2]
[321154373,1711917032173,-250.0,0.00041102,2]
[321154375,1711917032183,-394.35,0.00041139,2]
[321154377,1711917032193,-158.49,0.00041179,15]
[321154379,1711917032203,-800.0,0.00041192,2]
[321154382,1711917032213,-1428.30537472,0.0004136,4]
[321154384,1711917032223,-341.06,0.00041537,2]
[321154385,1711917032233,-362.47,0.00041724,2]
[321154388,1711917032243,-150.0,0.00041966,2]
[321154389,1711917032254,-414.23330998,0.0004199,2]
[321154391,1711917032264,-278.10387507,0.00042073,16]
[321154393,1711917032274,-8849.64008349,0.00042077,2]
[321154395,1711917032283,-1949.46635727,0.00042077,2]
[321154397,1711917032292,-152.56590483,0.00042083,14]
[321154400,1711917032302,-6580.90320519,0.00042137,4]
[321154402,1711917032311,-217.4,0.00042163,2]
[321154403,1711917032319,-217.4,0.00042163,2]
[321154405,1711917032328,-217.4,0.00042163,2]
[321154406,1711917032338,-217.4,0.00042163,2]
[321154407,1711917032347,-217.4,0.00042163,2]
[321154408,1711917032357,-217.4,0.00042163,2]
[321154409,1711917032366,-583.5711546,0.00042163,2]
[321154410,1711917032375,-154.11,0.00042167,2]
[321154411,1711917032385,-154.11,0.00042167,2]
[321154412,1711917032394,-273.76874797,0.00042172,31]
[321154413,1711917032404,-272511.48514542,0.00042173,7]
[321154414,1711917032420,-566366.70350085,0.00042173,7]
[321154415,1711917032429,-436.46975996,0.00042173,2]
[321154416,1711917032439,-1036.29166687,0.00042173,2]
[321154417,1711917032449,-2500.0,0.00042173,2]
[321154418,1711917032458,-562.78055981,0.00042173,2]
[321154419,1711917032468,-2311.81680079,0.00042173,2]
[321154420,1711917032477,-233.80346046,0.00042173,2]
[321154421,1711917032486,-1596.33824723,0.00042173,2]
[321154422,1711917032495,-1065.7852371,0.00042173,7]
[321154423,1711917032504,-523.54471295,0.00042173,2]
[321154424,1711917032512,-886.3753014,0.00042173,2]
[321154425,1711917032521,-9258.00764253,0.00042173,2]
[321154426,1711917032531,-467.77328392,0.00042173,2]
[321154427,1711917032540,-384.4238418,0.00042173,2]
[321154428,1711917032550,-240.08105957,0.00042173,2]
[321154429,1711917032559,-4939.71123371,0.00042173,14]
[321154430,1711917032571,-576.32490571,0.00042173,14]
[321154448,1711917037750,-18337.80263789,0.00042173,14]
[321154450,1711917037759,-1115.98769307,0.00042173,10]
[321154452,1711917037769,-1763.48197311,0.00042173,2]
[321154454,1711917037779,-1374.98423013,0.00042173,10]
[321154455,1711917037788,-532.03852694,0.00042173,2]
[321154456,1711917037798,-4898.13681948,0.00042173,2]
[321154457,1711917037807,-738.85617067,0.00042173,10]
[321154458,1711917037816,-353.91956168,0.00042173,2]
[321154460,1711917037826,-591.63747715,0.00042173,2]
[321154462,1711917037835,-3032.09827416,0.00042173,7]
[321154464,1711917037844,-161611.48070884,0.00042173,2]
[321154466,1711917037853,-192.28621157,0.00042173,7]
[321154468,1711917037862,-18936.72762934,0.00042173,3]
[321154470,1711917037872,-1784.70607232,0.00042173,2]
[321154472,1711917037881,-3832.89479173,0.00042173,3]
[321154474,1711917037891,-118049.07905891,0.00042173,14]
[321154476,1711917037900,-337.06952388,0.00042173,2]
[321154478,1711917037909,-1051.66325488,0.00042173,7]
[321154479,1711917037918,-1329.81484633,0.00042173,20]
[321154481,1711917037927,-5028.66795686,0.00042173,2]
[321154483,1711917037936,-1458.40708415,0.00042173,14]
[321154485,1711917037946,-204.69310846,0.00042173,5]
[321154487,1711917037955,-1003.6667417,0.00042173,2]
[321154489,1711917037964,-213.89584315,0.00042173,2]
[321154491,1711917037973,-636.29558818,0.00042173,2]
[321154493,1711917037982,-1002.79407176,0.00042173,2]
[321154495,1711917037990,-337.02219791,0.00042175,4]
[321154497,1711917038000,-295.17170453,0.00042175,4]
[321154499,1711917038009,-668.8990073,0.00042175,4]
[321154501,1711917038018,-957.25175318,0.00042175,5]
[321154503,1711917038027,-653.40275292,0.00042175,10]
[321154505,1711917038037,-283.76827483,0.00042175,4]
[321154507,1711917038046,-5000.0,0.00042176,14]
[321154509,1711917038056,-13683.57497961,0.00042206,4]
[321154511,1711917038065,-400.0,0.00042206,2]
[321154513,1711917038074,-5942.88283628,0.00042206,4]
[321154515,1711917038083,-11344.64514022,0.00042206,4]
[321154517,1711917038092,-2850.94278031,0.00042206,4]
[321154519,1711917038101,-3220.19426931,0.00042206,4]
[321154521,1711917038111,-2247.86253959,0.00042207,4]
[321154523,1711917038120,-1076.17132504,0.00042207,2]
[321154525,1711917038130,-1000.0,0.00042208,2]
[321154527,1711917038139,-1000.0,0.00042208,2]
[321154529,1711917038148,-1000.0,0.00042208,2]
[321154531,1711917038157,-1000.0,0.00042208,2]
[321154533,1711917038167,-1000.0,0.00042208,2]
[321154535,1711917038179,-1000.0,0.00042208,2]
[321154537,1711917038188,-1000.0,0.00042208,2]
[321154540,1711917038197,-1000.0,0.00042208,2]
[321154542,1711917038206,-1000.0,0.00042208,2]
[321154544,1711917038215,-1000.0,0.00042208,2]
[321154546,1711917038225,-1000.0,0.00042208,2]
[321154548,1711917038234,-1000.0,0.00042208,2]
[321154550,1711917038243,-1000.0,0.00042208,2]
[321154554,1711917038254,-1000.0,0.00042208,2]
[321154557,1711917038264,-1000.0,0.00042208,2]
[321154559,1711917038273,-1000.0,0.00042208,2]
[321154561,1711917038282,-1000.0,0.00042208,2]
[321154563,1711917038291,-1000.0,0.00042208,2]
[321154565,1711917038300,-1000.0,0.00042208,2]
[321154567,1711917038309,-1000.0,0.00042208,2]
[321154569,1711917038318,-1000.0,0.00042208,2]
[321154571,1711917038327,-1000.0,0.00042208,2]
[321154573,1711917038336,-1000.0,0.00042208,2]
[321154575,1711917038345,-1000.0,0.00042208,2]
[321154577,1711917038355,-1000.0,0.00042208,2]
[321154579,1711917038365,-1000.0,0.00042208,2]
[321154581,1711917038374,-1000.0,0.00042208,2]
[321154583,1711917038384,-1000.0,0.00042208,2]
[321154585,1711917038393,-1000.0,0.00042208,2]
[321154587,1711917038402,-1000.0,0.00042208,2]
[321154589,1711917038411,-1000.0,0.00042208,2]
[321154591,1711917038420,-1000.0,0.00042208,2]
[321154593,1711917038429,-1000.0,0.00042208,2]
[321154595,1711917038438,-1000.0,0.00042208,2]
[321154597,1711917038447,-1000.0,0.00042208,2]
[321154599,1711917038457,-1000.0,0.00042208,2]
[321154601,1711917038466,-1000.0,0.00042208,2]
[321154603,1711917038475,-1000.0,0.00042208,2]
[321154605,1711917038484,-1000.0,0.00042208,2]
[321154607,1711917038493,-1000.0,0.00042208,2]
[321154609,1711917038502,-1000.0,0.00042208,2]
[321154611,1711917038511,-1000.0,0.00042208,2]
[321154613,1711917038520,-1000.0,0.00042208,2]
[321154615,1711917038530,-1000.0,0.00042208,2]
[321154617,1711917038539,-1000.0,0.00042208,2]
[321154619,1711917038548,-1000.0,0.00042208,2]
[321154621,1711917038557,-1000.0,0.00042208,2]
[321154623,1711917038566,-1000.0,0.00042208,2]
[321154625,1711917038575,-1000.0,0.00042208,2]
[321154627,1711917038584,-1000.0,0.00042208,2]
[321154629,1711917038594,-1000.0,0.00042208,2]
[321154631,1711917038603,-1000.0,0.00042208,2]
[321154633,1711917038611,-1000.0,0.00042208,2]
[321154635,1711917038620,-1000.0,0.00042208,2]
[321154637,1711917038630,-1000.0,0.00042208,2]
[321154639,1711917038639,-1000.0,0.00042208,2]
[321154641,1711917038648,-1000.0,0.00042208,2]
[321154643,1711917038657,-1000.0,0.00042208,2]
[321154645,1711917038666,-1000.0,0.00042208,2]
[321154646,1711917038675,-1000.0,0.00042208,2]
[321154647,1711917038684,-1000.0,0.00042208,2]
[321154648,1711917038693,-1000.0,0.00042208,2]
[321154649,1711917038701,-1000.0,0.00042208,2]
[321154651,1711917038711,-1000.0,0.00042208,2]
[321154653,1711917038720,-1000.0,0.00042208,2]
[321154655,1711917038729,-1000.0,0.00042208,2]
[321154657,1711917038739,-1000.0,0.00042208,2]
[321154659,1711917038748,-1000.0,0.00042208,2]
[321154661,1711917038757,-1000.0,0.00042208,2]
[321154664,1711917038766,-1000.0,0.00042208,2]
[321154666,1711917038775,-1000.0,0.00042208,2]
[321154668,1711917038785,-1000.0,0.00042208,2]
[321154670,1711917038794,-1000.0,0.00042208,2]
[321154671,1711917038802,-1000.0,0.00042208,2]
[321154674,1711917038812,-1000.0,0.00042208,2]
[321154676,1711917038824,-1000.0,0.00042208,2]
[321154678,1711917038834,-1000.0,0.00042208,2]
[321154679,1711917038843,-1000.0,0.00042208,2]
[321154681,1711917038852,-1000.0,0.00042208,2]
[321154683,1711917038861,-1000.0,0.00042208,2]
[321154685,1711917038870,-1000.0,0.00042208,2]
[321154687,1711917038880,-1036.0,0.00042208,2]
[321154689,1711917038889,-151.0,0.00042208,14]
[321154692,1711917038898,-151.0,0.00042208,14]
[321154694,1711917038907,-186.082506,0.00042208,14]
[321154696,1711917038918,-182.759332,0.00042208,14]
[321154698,1711917038927,-151.0,0.00042208,14]
[321154700,1711917038937,-151.0,0.00042208,14]
[321154702,1711917038947,-151.0,0.00042208,14]
[321154704,1711917038956,-151.0,0.00042208,14]
[321154706,1711917038965,-151.0,0.00042208,14]
[321154708,1711917038975,-151.0,0.00042208,14]
[321154710,1711917038984,-194.538442,0.00042208,14]
[321154712,1711917038993,-151.0,0.00042208,14]
[321154714,1711917039002,-151.0,0.00042208,14]
[321154716,1711917039011,-151.0,0.00042208,14]
[321154717,1711917039020,-430.687383,0.00042208,14]
[321154718,1711917039030,-151.0,0.00042208,14]
[321154719,1711917039039,-157.27631021,0.00042211,4]
[321154720,1711917039049,-155.0,0.00042211,4]
[321154721,1711917039058,-16314.87102378,0.00042212,4]
[321154722,1711917039068,-217.4,0.00042213,2]
[321154723,1711917039077,-15627.44145085,0.00042223,4]
[321154724,1711917039086,-1468.79,0.00042259,2]
[321154725,1711917039096,-153.21,0.000428,4]
[321154726,1711917039105,-1048.86,0.000428,4]
[321154727,1711917039114,-1048.86,0.000428,4]
[321154728,1711917039123,-1048.86,0.000428,4]
[321154729,1711917039134,-1048.86,0.000428,4]
[321154730,1711917039143,-1048.86,0.000428,4]
[321154731,1711917039153,-1048.86,0.000428,4]
[321154732,1711917039163,-1048.86,0.000428,4]
[321154733,1711917039175,-1048.86,0.000428,4]
[321154734,1711917039184,-1048.86,0.000428,4]
[321154735,1711917039193,-1048.86,0.000428,4]
[321154736,1711917039202,-1048.86,0.000428,4]
[321154737,1711917039211,-1048.86,0.000428,4]
[321154738,1711917039220,-1048.86,0.000428,4]
[321154739,1711917039229,-1048.86,0.000428,4]
[321154740,1711917039238,-1048.86,0.000428,4]
[321154741,1711917039248,-1048.86,0.000428,4]
[321154742,1711917039260,-1048.86,0.000428,4]
[321154743,1711917039269,-1048.86,0.000428,4]
[321154744,1711917039279,-1048.86,0.000428,4]
[321154745,1711917039290,-1048.86,0.000428,4]
[321154746,1711917039302,-600.0,0.00043,3]
[321154747,1711917039312,-158.24,0.00043194,2]
[321154748,1711917039321,-200.0,0.00043311,2]
[321154749,1711917039330,-151.0,0.00043513,14]
[321154750,1711917039339,-151.0,0.00043513,14]
[321154751,1711917039349,-430.687383,0.00043513,14]
[321154752,1711917039359,-12976.11,0.00043513,2]
[321154753,1711917039370,-561.68,0.00043798,2]
[321154754,1711917039379,-341.06,0.00043801,2]
[321154755,1711917039389,-158.49,0.00043919,15]
[321154756,1711917039398,-278.10387505,0.00044279,19]
[321154757,1711917039408,-151.0,0.00044319,14]
[321154758,1711917039417,-151.0,0.00044319,14]
[321154759,1711917039426,-6110.126104,0.00044319,3]
[321154760,1711917039435,-151.0,0.00044319,14]
[321154761,1711917039444,-151.0,0.00044319,14]
[321154762,1711917039453,-151.0,0.00044319,14]
[321154763,1711917039462,-1949.46635718,0.00044502,2]
[321154764,1711917039472,-8849.64008345,0.00044613,2]
[321154765,1711917039481,-650.0,0.00045,3]
[321154766,1711917039490,-157.76943012,0.00045075,30]
[321154767,1711917039499,-162.03426665,0.00045192,30]
[321154768,1711917039508,-152.3281057,0.00045576,30]
[321154769,1711917039517,-341.06,0.00046064,2]
[321154770,1711917039526,-800.0,0.00046341,2]
[321154771,1711917039535,-278.10387505,0.00046484,22]
[321154772,1711917039544,-561.68,0.00046538,2]
[321154773,1711917039553,-158.49,0.00046659,15]
[321154774,1711917039563,-1949.46635718,0.00046927,2]
[321154775,1711917039572,-700.0,0.00047,3]
[321154776,1711917039582,-8849.64008345,0.00047149,2]
[321154777,1711917039591,-152.33,0.00047726,2]
[321154778,1711917039600,-162.03426665,0.00047763,30]
[321154779,1711917039609,-151.0,0.00048,120]
[321154780,1711917039618,-166.33000668,0.0004806,30]
[321154781,1711917039627,-20071.10760752,0.00048119,7]
[321154782,1711917039637,-341.06,0.00048328,2]
[321154783,1711917039646,-153.21,0.000484,6]
[321154784,1711917039655,-153.21,0.000484,6]
[321154785,1711917039664,-1048.86,0.000484,6]
[321154786,1711917039673,-1048.86,0.000484,6]
[321154787,1711917039682,-1048.86,0.000484,6]
[321154788,1711917039692,-1048.86,0.000484,6]
[321154789,1711917039703,-1048.86,0.000484,6]
[321154790,1711917039712,-1048.86,0.000484,6]
[321154791,1711917039721,-1048.86,0.000484,6]
[321154792,1711917039732,-1048.86,0.000484,6]
[321154793,1711917039746,-1048.86,0.000484,6]
[321154794,1711917039755,-1048.86,0.000484,6]
[321154795,1711917039764,-1048.86,0.000484,6]
[321154796,1711917039774,-1048.86,0.000484,6]
[321154797,1711917039783,-1048.86,0.000484,6]
[321154798,1711917039793,-1048.86,0.000484,6]
[321154799,1711917039802,-1048.86,0.000484,6]
[321154800,1711917039811,-1048.86,0.000484,6]
[321154801,1711917039820,-1048.86,0.000484,6]
[321154802,1711917039830,-1048.86,0.000484,6]
[321154803,1711917039841,-1048.86,0.000484,6]
[321154804,1711917039850,-1048.86,0.000484,6]
[321154805,1711917039862,-278.10387505,0.0004869,24]
[321154806,1711917039873,-1028.0,0.000487,117]
[321154807,1711917039881,-200.0,0.00048725,2]
[321154808,1711917039890,-750.0,0.00049,3]
[321154809,1711917039899,-1000.0,0.00049315,60]
[321154810,1711917039908,-1949.46635718,0.00049351,2]
[321154811,1711917039917,-158.49,0.00049399,120]
[321154812,1711917039926,-182.82306052,0.00049467,4]
[321154813,1711917039935,-349.67180536,0.0004949,10]
[321154814,1711917039944,-151.0,0.00049562,120]
[321154815,1711917039953,-8849.64008345,0.00049685,2]
[321154816,1711917039962,-999.999999,0.0005,2]
[321154817,1711917039971,-1119.53602467,0.0005,2]
[321154818,1711917039980,-816.17506303,0.0005,2]
[321154819,1711917039989,-3881.02969086,0.0005,2]
[321154820,1711917039998,-200.0,0.0005,2]
[321154821,1711917040007,-409.0,0.0005,9]
[321154822,1711917040016,-2000.0,0.0005,120]
[321154823,1711917040024,-151.0,0.0005,120]
[321154824,1711917040033,-153.42903365,0.00050086,60]
[321154825,1711917040042,-1000.0,0.00050136,64]
[321154826,1711917040051,-341.06,0.00050592,2]
[321154827,1711917040060,-347.44,0.00050613,30]
[321154828,1711917040069,-150.0,0.00050613,30]
[321154829,1711917040078,-150.0,0.00050613,30]
[321154830,1711917040087,-278.10387505,0.00050896,27]
[321154831,1711917040096,-1000.0,0.00050958,68]
[321154832,1711917040105,-22492.36569061,0.000511,7]
[321154833,1711917040114,-151.0,0.000511,30]
[321154834,1711917040123,-151.0,0.000511,120]
[321154835,1711917040132,-151.0,0.000511,120]
[321154836,1711917040141,-151.0,0.000511,120]